Cogmind - Beta 16 @@@ ROGUE MODE // 2025.12.30 @ 17:57:19 Player: Lucano Result: Destroyed by G-50 Soldier with Heavy Laser Performance ------------- Evolutions (2) 1000 Regions Visited (6) 1200 Robots Destroyed (12) 60 Value Destroyed (244) 244 Prototype IDs (1) 20 Alien Tech Used (0) 0 Bonus (0) 0 TOTAL SCORE: 2524 Bonus ------- None Cogmind --------- Core Integrity 0/550 Matter 119/300 Energy 0/100 System Corruption 0% Temperature Warm (115) Movement Treading (145) Location -8/Materials Parts ------- > --- POWER (3) -------- (None) > --- PROPULSION (3) --- Advanced Treads Advanced Treads > --- UTILITY (3) ------ Small Storage Unit > --- WEAPON (2) ------- Heavy Particle Cannon > --- INVENTORY (8) ---- Advanced Treads Large Matter Pod (0) Grenade Launcher Improved Datajack Peak State ------------ > --- POWER ------------ Nuclear Core > --- PROPULSION ------- Advanced Treads Advanced Treads Advanced Treads > --- UTILITY ---------- Small Storage Unit Large Matter Pod Compact Matter Pod > --- WEAPON ----------- Rocket Launcher > --- INVENTORY -------- Advanced Treads Advanced Treads Advanced Treads Heavy Particle Cannon Grenade Launcher Improved Datajack [Rating: 20] Favorites ----------- Power Light Ion Engine Engine Light Ion Engine Power Core Nuclear Core Propulsion Aluminum Leg Treads Advanced Treads Leg Aluminum Leg Utility Small Storage Unit Device ECM Suite Storage Small Storage Unit Weapon Grenade Launcher Energy Cannon Heavy Particle Cannon Ballistic Gun Assault Rifle Launcher Grenade Launcher Special Melee Weapon Improved Datajack Build | -11 -10 -9 -9 -9 -8 -8 ------- Run | Yrd Mat Mat Min Exi Min Mat Slots Evolved 4 | . . 2 . . . 2 Power 2 | . . . . . . 2 Propulsion 1 | . . 1 . . . . Utility 1 | . . 1 . . . . Weapon . | . . . . . . . Parts Attached 27 | 7 1 4 2 . . 13 Power 4 | 1 . . . . . 3 Engine 3 | 1 . . . . . 2 Core 1 | . . . . . . 1 Reactor . | . . . . . . . Propulsion 8 | 2 . 1 . . . 5 Treads 5 | . . . . . . 5 Leg 3 | 2 . 1 . . . . Wheel . | . . . . . . . Hover . | . . . . . . . Flight . | . . . . . . . Utility 6 | 2 1 2 . . . 1 Device 3 | 1 1 1 . . . . Storage 3 | 1 . 1 . . . 1 Processor . | . . . . . . . Hackware . | . . . . . . . Protection . | . . . . . . . Artifact . | . . . . . . . Weapon 9 | 2 . 1 2 . . 4 Energy Gun . | . . . . . . . Energy Cannon 1 | . . . . . . 1 Ballistic Gun 3 | 2 . 1 . . . . Ballistic Cannon . | . . . . . . . Launcher 4 | . . . 2 . . 2 Special Weapon . | . . . . . . . Impact Weapon . | . . . . . . . Slashing Weapon . | . . . . . . . Piercing Weapon . | . . . . . . . Special Melee Weapon 1 | . . . . . . 1 Unidentified Prototypes . | . . . . . . . Parts Lost 12 | . . . . . . 12 Power 4 | . . . . . . 4 Propulsion 3 | . . . . . . 3 Utility 2 | . . . . . . 2 Weapon 3 | . . . . . . 3 Highest Loss Streak 5 | . . . . . . 5 To Critical Strikes . | . . . . . . . Average Backups 4 | 1 3 4 5 5 5 4 Power . | 1 1 1 1 1 1 . Propulsion . | . . . . . . 1 Utility 1 | . . 1 2 2 2 . Weapon 1 | . 1 2 2 2 2 1 Tool/Special . | . . . . . . . Unused Backups 1 | . . . . . . 1 Power . | . . . . . . . Propulsion 1 | . . . . . . 1 Utility . | . . . . . . . Weapon . | . . . . . . . Tool/Special . | . . . . . . . Average Slot Usage (%) 76 | . 100 89 87 88 88 49 Engine 9 | . 14 11 11 11 11 5 Treads 3 | . . . . . . 9 Leg 23 | . 28 32 33 33 33 6 Device 3 | . 14 11 . . . 1 Storage 17 | . 14 12 22 22 22 15 Ballistic Gun 7 | . 28 22 6 . . . Launcher 10 | . . . 14 22 22 7 Peak Build Rating 20 | 9 9 9 8 8 8 20 Average Rating 8 | 5 7 8 7 8 8 9 On Entrance 6 | . 9 7 8 8 8 8 Avg Prop Armor Cover (%) . | . . . . . . . Naked Turns . | . . . . . . . Heaviest Build 27 | 12 12 15 17 17 17 27 Greatest Support 66 | 20 20 30 30 30 30 66 Greatest Overweight (x) 3 | . . . . . . 3 Average Overweight (x) . | . . . . . . . Largest Inventory Capacity 8 | 8 8 8 8 8 8 8 Average Capacity 7 | 7 8 8 8 8 8 6 Most Carried 7 | 4 5 6 7 5 5 7 Average Carried 4 | 1 3 4 5 5 5 4 Final Capacity 8 | 8 8 8 8 8 8 8 Final Carried 5 | 2 5 5 5 5 5 4 Class Distribution -------------------- 100% | Mutant Dominant Class ---------------- Mutant | -10/Materials Mutant | -9/Materials Mutant | -9/Mines Mutant | -9/Exiles Mutant | -8/Mines Mutant | -8/Materials Resources | -11 -10 -9 -9 -9 -8 -8 ----------- Run | Yrd Mat Mat Min Exi Min Mat Matter Collected 505 | 208 . . 151 . 5 141 Remotely . | . . . . . . . Salvage Created 302 | 57 . . . . 7 238 Parts 27 | 8 . . . . 6 13 Haulers Intercepted 1 | . . . . . . 1 Recyclers Shooed 2 | . . . . . . 2 Parts Field Recycled . | . . . . . . . Retrieved Matter . | . . . . . . . Parts Self-Destructed . | . . . . . . . Prevented . | . . . . . . . Parts Restored . | . . . . . . . Kills | -11 -10 -9 -9 -9 -8 -8 ------- Run | Yrd Mat Mat Min Exi Min Mat Combat Hostiles Destroyed 4 | . . . . . . 4 Cannons 1 | . . . . . . 1 AOE 3 | . . . . . . 3 Classes Destroyed 5 | 1 . . . . 1 3 Builder 2 | . . . . . 1 1 Tunneler 4 | 3 . . . . 1 . Hauler 1 | . . . . . . 1 Recycler 1 | . . . . . . 1 Grunt 4 | . . . . . . 4 Best Kill Streak 5 | 3 . . . . 2 5 Combat Bots Only 3 | . . . . . . 3 Max Kills in Single Turn 2 | 1 . . . . 1 2 Gunslinging . | . . . . . . . Exploded 1 | . . . . . . 1 Melee . | . . . . . . . Uniques/NPCs Destroyed . | . . . . . . . Combat | -11 -10 -9 -9 -9 -8 -8 -------- Run | Yrd Mat Mat Min Exi Min Mat Hostile Shots Fired 158 | . . 3 28 . . 127 Missed 52 | . . . 11 . . 41 Hits 106 | . . 3 17 . . 86 Melee 4 | . . . 1 . . 3 Projectile 102 | . . 3 16 . . 83 Critical Strikes 8 | . . . . . . 8 Damage Taken 2331 | . 37 42 244 . . 2008 Core 580 | . . . 22 . . 558 Absorbed by Shields . | . . . . . . . Core Remaining (%) 98 | 100 100 . . . 94 . Volleys Fired 42 | 5 . . 2 . 2 33 Largest 2 | 2 . . 2 . 2 1 Hottest 75 | 40 . . 40 . 60 75 Shots Fired 51 | 10 . . 4 . 4 33 Gun 27 | 10 . . 4 . . 13 Cannon 6 | . . . . . . 6 Launcher 18 | . . . . . 4 14 Special . | . . . . . . . Kinetic 27 | 10 . . 4 . . 13 Thermal 6 | . . . . . . 6 Explosive 18 | . . . . . 4 14 Electromagnetic . | . . . . . . . Robot Hit Streak 12 | 5 . . 6 . 1 12 Robot Miss Streak 2 | 1 . . 1 . . 2 Penetration Max . | . . . . . . . Secondary Targets . | . . . . . . . Shots Hit Robots 34 | 7 . . 2 . 1 24 Core Hits 23 | 3 . . . . 4 16 Critical Kills . | . . . . . . . Critical Parts Destroyed . | . . . . . . . Critical Strikes . | . . . . . . . Melee Attacks 1 | . . . . . . 1 Impact . | . . . . . . . Slashing . | . . . . . . . Piercing . | . . . . . . . Sneak Attacks . | . . . . . . . Combat Hostiles . | . . . . . . . Follow-up Attacks . | . . . . . . . Damage Inflicted 1267 | 80 2 . 28 . 151 1006 Guns 209 | 80 . . 28 . . 101 Cannons 125 | . . . . . . 125 Explosions 899 | . . . . . 151 748 Melee . | . . . . . . . Ramming 34 | . 2 . . . . 32 Kinetic 209 | 80 . . 28 . . 101 Thermal 125 | . . . . . . 125 Explosive 899 | . . . . . 151 748 Electromagnetic . | . . . . . . . Impact . | . . . . . . . Slashing . | . . . . . . . Piercing . | . . . . . . . Highest Corruption . | . . . . . . . Average Corruption . | . . . . . . . Corruption Purged . | . . . . . . . Corruption Blocked . | . . . . . . . Overload Shots . | . . . . . . . Overflow Damage 6 | . . . . . . 6 Projectiles . | . . . . . . . Explosions 6 | . . . . . . 6 Melee . | . . . . . . . Knockbacks . | . . . . . . . Impact . | . . . . . . . Kinetic . | . . . . . . . Secondary . | . . . . . . . Self-Inflicted Damage 179 | . . . . . . 179 Shots 9 | . . . . . . 9 Rammed 7 | . . . . . . 7 Targets Rammed 8 | . 1 . . . . 7 Kicked 1 | . 1 . . . . . Crushed . | . . . . . . . Highest Temperature 177 | . . . 2 . . 177 Average Temperature 66 | . . . 2 . . 69 Received Heat Transfer 618 | . . 9 96 . . 513 Siege Activations . | . . . . . . . Martial Activations . | . . . . . . . Shielding Activations . | . . . . . . . Robots Disrupted . | . . . . . . . Combat Hostiles . | . . . . . . . Robots Corrupted . | . . . . . . . Combat Hostiles . | . . . . . . . Parts Fried . | . . . . . . . Impact Corruptions . | . . . . . . . Robots Melted . | . . . . . . . Combat Hostiles . | . . . . . . . Parts Melted . | . . . . . . . Heat Transferred 185 | . . . . . . 185 Parts Sabotaged . | . . . . . . . Parts Stolen . | . . . . . . . Parts Stripped . | . . . . . . . Power Chain Reactions . | . . . . . . . Alert | -11 -10 -9 -9 -9 -8 -8 ------- Run | Yrd Mat Mat Min Exi Min Mat Maximum Alert Level . | . . . . . . . Low Security (%) 100 | 100 100 100 100 . 100 100 Level 1 . | . . . . . . . Level 2 . | . . . . . . . Level 3 . | . . . . . . . Level 4 . | . . . . . . . Level 5 . | . . . . . . . High Security . | . . . . . . . Max Security . | . . . . . . . Peak Influence 164 | 10 . 30 30 . 14 164 Initial 6 | . . . 6 . . . Average 22 | . . 5 2 . 1 64 Influence Increases 458 | 15 . 36 30 . 24 353 Destroy 0b10 Robot/C 80 | . . . . . . 80 Destroy 0b10 Robot/NC 40 | 15 . . . . 10 15 Destroy Leader 12 | . . . . . . 12 Successful Hack 8 | . . 6 . . . 2 Disable Machine 15 | . . . . . . 15 Destroy Structure 78 | . . . . . 14 64 Partial Spotted 30 | . . . . . . 30 Lose Combat Pursuer 195 | . . 30 30 . . 135 Influence Decreases 299 | 15 . 20 46 . 24 194 Entered New Map 10 | . . . 10 . . . Time Decay 249 | 15 . 20 36 . 24 154 Lost Part 40 | . . . . . . 40 Squads Dispatched 4 | . . . . . . 4 Investigation . | . . . . . . . Extermination . | . . . . . . . Reinforcement 3 | . . . . . . 3 Assault . | . . . . . . . Garrison 1 | . . . . . . 1 Intercept . | . . . . . . . Searches Triggered . | . . . . . . . Construction Impeded 1 | . . . . . . 1 Haulers Reinforced . | . . . . . . . Active Scanning Responses . | . . . . . . . Cargo Convoy Interrupts . | . . . . . . . Stealth | -11 -10 -9 -9 -9 -8 -8 --------- Run | Yrd Mat Mat Min Exi Min Mat Distress Signals 1 | . . . . . . 1 Communications Jammed . | . . . . . . . Distress Signals . | . . . . . . . Times Spotted 37 | . 1 2 8 . . 26 Peak Tracking Total 12 | . . 3 6 . . 12 Tactical Retreats 6 | . . 1 1 . . 4 Traps | -11 -10 -9 -9 -9 -8 -8 ------- Run | Yrd Mat Mat Min Exi Min Mat Traps Triggered 5 | . 1 . . . . 4 Indirectly . | . . . . . . . Trap Hack Attempts . | . . . . . . . Triggered . | . . . . . . . Disarmed . | . . . . . . . Reprogrammed . | . . . . . . . Reused . | . . . . . . . Traps Extracted . | . . . . . . . Installed . | . . . . . . . Triggered . | . . . . . . . Machines | -11 -10 -9 -9 -9 -8 -8 ---------- Run | Yrd Mat Mat Min Exi Min Mat Machines Disabled 1 | . . . . . . 1 Max in Single Turn 1 | . . . . . . 1 Machines Repaired . | . . . . . . . Machines Dismantled . | . . . . . . . Machines Sabotaged . | . . . . . . . Overloaded Fab Kills . | . . . . . . . Hacking | -11 -10 -9 -9 -9 -8 -8 --------- Run | Yrd Mat Mat Min Exi Min Mat Machines Accessed 3 | . . 1 . . . 2 Terminals 1 | . . 1 . . . . Fabricators . | . . . . . . . Repair Stations . | . . . . . . . Recycling Units . | . . . . . . . Scanalyzers 2 | . . . . . . 2 Garrison Access . | . . . . . . . Total Hacks 12 | . . 3 . . . 9 Successful 10 | . . 3 . . . 7 Failed 1 | . . . . . . 1 Catastrophic . | . . . . . . . Database Lockouts 1 | . . . . . . 1 Manual . | . . . . . . . Terminals 3 | . . 3 . . . . Fabricators . | . . . . . . . Repair Stations . | . . . . . . . Recycling Units . | . . . . . . . Scanalyzers 9 | . . . . . . 9 Garrison Access . | . . . . . . . Terminal Hacks 3 | . . 3 . . . . Record 2 | . . 2 . . . . Zone Layout 1 | . . 1 . . . . Fabricator Hacks . | . . . . . . . Repair Station Hacks . | . . . . . . . Recycling Unit Hacks . | . . . . . . . Scanalyzer 7 | . . . . . . 7 Insert Component 2 | . . . . . . 2 Analyze 1 | . . . . . . 1 Retrieve Study 4 | . . . . . . 4 Garrison Access Hacks . | . . . . . . . Unauthorized Hacks . | . . . . . . . Terminals . | . . . . . . . Fabricators . | . . . . . . . Repair Stations . | . . . . . . . Recycling Units . | . . . . . . . Scanalyzers . | . . . . . . . Garrison Access . | . . . . . . . Data Cores Recovered . | . . . . . . . Used . | . . . . . . . Hacking Detections 2 | . . 1 . . . 1 Full Trace Events 1 | . . 1 . . . . Feedback Events . | . . . . . . . Feedback Blocked . | . . . . . . . Robot Schematics Acquired . | . . . . . . . Robots Built . | . . . . . . . Authchips . | . . . . . . . Time . | . . . . . . . Total Robot Build Rating . | . . . . . . . Part Schematics Acquired 1 | . . . . . . 1 Parts Built . | . . . . . . . Authchips . | . . . . . . . Time . | . . . . . . . Total Part Build Rating . | . . . . . . . Part Studies Acquired 4 | . . . . . . 4 Parts Repaired . | . . . . . . . Time . | . . . . . . . Parts Recycled . | . . . . . . . Recycled Matter . | . . . . . . . Retrieved Matter . | . . . . . . . Retrieved Components . | . . . . . . . Parts Scanalyzed 1 | . . . . . . 1 Part Schematics Acquired 1 | . . . . . . 1 Parts Damaged . | . . . . . . . Bothacking | -11 -10 -9 -9 -9 -8 -8 ------------ Run | Yrd Mat Mat Min Exi Min Mat Used RIF Installer . | . . . . . . . Robots Hacked 1 | . . . . . . 1 Non-combat . | . . . . . . . Combat 1 | . . . . . . 1 Robot Hacks Applied 1 | . . . . . . 1 parse_system 1 | . . . . . . 1 Relay Couplers Released . | . . . . . . . Fabnet Peak Effective % . | . . . . . . . Robots Rewired . | . . . . . . . Allies Hacked . | . . . . . . . Hacks Repelled . | . . . . . . . Allies | -11 -10 -9 -9 -9 -8 -8 -------- Run | Yrd Mat Mat Min Exi Min Mat Total Allies . | . . . . . . . Largest Group . | . . . . . . . Highest-Rated Group . | . . . . . . . Highest-Rated Ally . | . . . . . . . Total Orders . | . . . . . . . Ally Attacks . | . . . . . . . Total Damage . | . . . . . . . Kills . | . . . . . . . Allies Corrupted . | . . . . . . . Allies Melted . | . . . . . . . Intel | -11 -10 -9 -9 -9 -8 -8 ------- Run | Yrd Mat Mat Min Exi Min Mat Active Infowar (turns) 348 | 11 178 74 . . . 85 Sensors 156 | . 93 63 . . . . Terrain 96 | 11 85 . . . . . ECM 159 | . . 74 . . . 85 Robot Analysis Total . | . . . . . . . Derelict Logs Recovered . | . . . . . . . Drone Launches . | . . . . . . . Drone Recoveries . | . . . . . . . Exploration | -11 -10 -9 -9 -9 -8 -8 ------------- Run | Yrd Mat Mat Min Exi Min Mat Turns Passed 1469 | 91 178 149 312 36 230 473 Spaces Moved 1134 | 53 143 118 252 31 187 350 Core 168 | 2 . . . . . 166 Treads 92 | . . . . . . 92 Legs 874 | 51 143 118 252 31 187 92 Wheels . | . . . . . . . Hover . | . . . . . . . Flight . | . . . . . . . Fastest Speed 50 | 50 120 120 120 120 120 50 Average Speed 114 | 117 120 120 120 120 120 103 Slowest Speed 245 | 120 120 120 120 120 120 245 Overloaded Moves . | . . . . . . . Propulsion Burnouts . | . . . . . . . Robots Hopped . | . . . . . . . Potential Cave-ins . | . . . . . . . Cave-ins Triggered . | . . . . . . . Exploration Rate (%) 30 | 5 30 18 46 8 62 45 Regions Visited 6 Branch Regions 3 Pre-discovered Areas . | . . . . . . . Known Exits Taken . | . . . . . . . Unknown Exits Taken 6 | 1 1 1 1 1 1 . Scrap Searched 1 | . . . 1 . . . Spaces Dug . | . . . . . . . Terrain Destroyed 81 | . . . . . 18 63 Melee . | . . . . . . . Projectile 1 | . . . . . . 1 AOE 80 | . . . . . 18 62 Terrain Rammed . | . . . . . . . Walls Destroyed . | . . . . . . . Machines Disabled . | . . . . . . . Actions | -11 -10 -9 -9 -9 -8 -8 --------- Run | Yrd Mat Mat Min Exi Min Mat Total 1253 | 73 149 126 258 30 188 429 Wait 5 | . . . . . . 5 Move 1128 | 52 142 117 251 30 186 350 Hop . | . . . . . . . Pick Up 25 | 9 4 2 1 . . 9 Fast Attach 4 | . . . . . . 4 Attach 24 | 7 . 3 1 . . 13 Detach 7 | . . 2 1 . . 4 Swap 4 | . 1 1 1 . . 1 Drop 5 | . 1 1 1 . . 2 Fire 42 | 5 . . 2 . 2 33 Melee 1 | . . . . . . 1 Ram 4 | . . . . . . 4 Kick 1 | . 1 . . . . . Crush 3 | . . . . . . 3 Escape Stasis . | . . . . . . . Rewire . | . . . . . . . Trap . | . . . . . . . Miscellaneous . | . . . . . . . Route ------- -11/Scrapyard -10/Materials (discovered 2 exits: *Mat / [*Min]) -9/Materials -9/Mines -9/Exiles -8/Mines -8/Materials History --------- Turn | Location | Event 2 | -11/Scrapyard | Met Revision 17 23 | -11/Scrapyard | Discovered new exit (range 16) 92 | -11/Scrapyard | Entered Materials 92 | -10/Materials | Discovered new exit (range 14) 203 | -10/Materials | Discovered new exit (range 3) 270 | -10/Materials | Entered another Materials area 270 | -9/Materials | Evolved 2 slots: Propulsion x1, Utility x1 311 | -9/Materials | Build established: Mutant 404 | -9/Materials | Discovered new exit (range 12) 419 | -9/Materials | Entered Mines 498 | -9/Mines | YI-UF0 nonchalantly dropped a Grenade Launcher on the ground 725 | -9/Mines | Deemed a non-threat by the Exiles lab entrance 725 | -9/Mines | Discovered new exit (range 5) 731 | -9/Mines | Entered Exiles 751 | -9/Exiles | Discovered new exit (range 15) 767 | -9/Exiles | Entered Mines 988 | -8/Mines | Discovered new exit (range 8) 997 | -8/Mines | Entered Materials 997 | -8/Materials | Evolved 2 slots: Power x2 1050 | -8/Materials | Central database locked down 1124 | -8/Materials | Lost 5 parts (2p1n1u1w) 1194 | -8/Materials | Lost 4 parts (1p1n2w) 1208 | -8/Materials | Core integrity fell below 50% 1246 | -8/Materials | Garrison activated, responded to threat 1409 | -8/Materials | Lost 3 parts (1p1n1u) 1437 | -8/Materials | Core integrity fell below 20% 1470 | -8/Materials | Destroyed by G-50 Soldier with Heavy Laser Last Messages --------------- K-01 Serf destroyed. R-06 Scavenger collects Wheel. R-06 Scavenger collects Sml. Matter Pod. Acquired 5 matter. Com. Matter Pod destroyed. Nuclear Core destroyed. Triggered Blade Trap. Massive razor-sharp blades shoot up from within the floor. Adv. Treads severed. Triggered Blade Trap. Massive razor-sharp blades shoot up from within the floor. Adv. Treads severed. Rocket Launcher+ severed. R-06 Scavenger collects Adv. Treads. R-06 Scavenger collects Rocket Launcher+. G-47 Trooper destroyed. Critical hit (Burn: +37). Acquired 52 matter. Map ----- +----------------------------------------------------+ | ??# #???# # #??????????????????#??? #?? | | ??# ##### # #?????????????????????? #?? | | ??# + #?????????????????????? ??? | | ??# ##### # ! #???????????????????????????? | | ????# # #####???????????????????????????? | | ####+#????# ##?###????????????????????????????? | | ??????????# #??#!!????????????????????????????? | | ??????????# #??#!!????????????????????????????? | | ??????????# #??# ????????????????????????????? | | ??????????#+##+#??# #?#####??????????????????????? | | ??????????# #??# ### #??????????????????????? | | ??????????#! #??# #??????????????????????? | | ??????????# #### #??????????????????????? | | ??????????# ! / #??????????????????????? | | ??????????# ### #???#??????????????????? | | ??????????#! #?# ### ##?????????????????? | | ??????????# = #?# #?????????????????? | | ??????????# #?# #?????????????????? | | ??????????# #?# #?????????????????? | | ??????????###/##?# ### ### #?????????????????? | | ???????????? ???# #?# #?? #?????????????????? | | ???????????? ?? #?# #??? +?????????????????? | | ???????????? ? #?# #???? #?????????????????? | | ???????????? = #?#Y#?????#?????????????????? | | ??????????? ##+#####g##??????????????????????? | | ???????????## ##?# *b@#??????????????????????? | | ????????????#????# g g #??????????????????????? | | ?????????????????# Y #??????????????????????? | | ?????????????????# #??????????????????????? | | ?????????????????####;#####??????????????????????? | | ??????????????????? ???????????????????????????? | | ?????????????????? ????????????????????????????? | | ?????????????????## ?????????????????????????????? | | ??????????????????#??????????????????????????????? | | ?????????????????????????????????????????????????? | | ?????????????????????????????????????????????????? | | ?????????????????????????????????????????????????? | | ?????????????????????????????????????????????????? | | ?????????????????????????????????????????????????? | | ?????????????????????????????????????????????????? | | ?????????????????????????????????????????????????? | | | | | | | | | | | | | | | | | | | +----------------------------------------------------+ Best States ------------- Heat Dissipation 31 Energy Generation 26 Energy Capacity 240 Matter Stores 292 Matter Capacity 600 Sight Range 16 Robot Scan Range 14 Terrain Scan Range 16 Terrain Scan Density 10 ECM Strength 1 Evasion (%) 55 Recoil Reduction 3 Item Schematics ----------------- Rocket Launcher | -8/Materials | Scanalyzed Robot Schematics ------------------ None Fabricated ------------ Nothing Repaired ---------- Nothing Studied --------- Rocket Launcher | -8/Materials | Hacked Grenade Launcher | -8/Materials | Hacked Aluminum Leg | -8/Materials | Hacked Lgt. Ion Engine | -8/Materials | Hacked Alien Tech Used ----------------- None Achievements -------------- Analysis Probe Item+ Oops Tourist You Again Challenges ------------ None Game ------ Seed InertialRefineryTerminator Manual? 0 Play Time 00:24:00 Cumulative 3.8 hours Start 2025.12.30 @ 17:32:51 End 2025.12.30 @ 17:57:19 Sessions 1 Manual Loads 0 Difficulty Rogue Special Mode None Game No. 7 Rogue 7 Adventurer 0 Explorer 0 Win Type - Total 0 Types 0/0/0/0/0/0/0/0/0/0 Lore% 0 Gallery% 7 Achievement% 6 Wizard Run 0 Options --------- Layout 1 ASCII 0 Keyboard 0 Movement Mouse Keybinds 0 Fullscreen 1 Font 24/Tallcaps Map View 50x35 Zoom Use 0% Tactical HUD 0 Map Filters NONE Filters NONE Steam 0 RUN: b7d5e9f0-2d1a-4d28-8fd8-634c112503b3